fUSD/lending_fUSD_20260528
["ID","MTS","AMOUNT","RATE_DAILY","PERIOD"]
[423227850,1779955843000,-200.0,0.00014756,2]
[423227867,1779955843000,-870.15784752,0.000149,2]
[423227879,1779955843000,-1172733.93695218,0.00015,2]
[423227875,1779955843000,-163.87240922,0.00015,14]
[423227894,1779955843000,-500.0,0.00012105,2]
[423227896,1779955843000,-500.0,0.00012105,2]
[423227908,1779955843000,-500.0,0.00012105,2]
[423227910,1779955843000,-110889.39587239,0.00015,2]
[423227934,1779955843000,-192.79,0.00012105,2]
[423227936,1779955843000,-264.89,0.00012105,2]
[423227930,1779955843000,-500.0,0.00012105,2]
[423227932,1779955843000,-307.21,0.00012105,2]
[423227938,1779955843000,-235.11,0.00012105,2]
[423227940,1779955843000,-500.0,0.00012105,2]
[423227944,1779955843000,-355.29723626,0.00012105,2]
[423227942,1779955843000,-500.0,0.00012105,2]
[423227946,1779955843000,-144.70276374,0.00012105,2]
[423227948,1779955843000,-7886.88618648,0.00015,2]
[423227869,1779955843000,-500.0,0.000149,5]
[423227904,1779955843000,-500.0,0.00012105,2]
[423227906,1779955843000,-500.0,0.00012105,2]
[423227900,1779955843000,-500.0,0.00012105,2]
[423227892,1779955843000,-500.0,0.00012105,2]
[423227902,1779955843000,-500.0,0.00012105,2]
[423227870,1779955843000,-159.66194497,0.000149,2]
[423227871,1779955843000,-6826.44778877,0.000149,2]
[423227872,1779955843000,-200.0,0.00014904,2]
[423227865,1779955843000,-207.00864086,0.0001489,2]
[423227874,1779955843000,-1614115.80504875,0.00015,2]
[423227873,1779955843000,-200.0,0.00014904,2]
[423227876,1779955843000,-226669.61602411,0.00015,2]
[423227877,1779955843000,-2078.68861048,0.00015,2]
[423227898,1779955843000,-500.0,0.00012105,2]
[423227890,1779955843000,-500.0,0.00012105,2]
[423227883,1779955843000,-878524.71175646,0.00015,2]
[423227878,1779955843000,-8091.36035297,0.00015,2]
[423227881,1779955843000,-62259.6009913,0.00015,2]
[423227880,1779955843000,-411073.08451516,0.00015,2]
[423227882,1779955843000,-500.0,0.00012105,2]
[423228126,1779955846000,-500.0,0.00012105,2]
[423228128,1779955846000,-57.76467657,0.00012105,2]
[423228127,1779955846000,-500.0,0.00012105,2]
[423228129,1779955846000,-442.23532343,0.00012105,2]
[423228131,1779955846000,-185.76083514,0.00012105,2]
[423228133,1779955846000,-500.0,0.00012105,2]
[423228132,1779955846000,-314.23916486,0.00012105,2]
[423228125,1779955846000,-500.0,0.00012105,2]
[423228134,1779955846000,-476.54616176,0.00012105,2]
[423228135,1779955846000,-23.45383824,0.00012105,2]
[423228141,1779955846000,-580.10523168,0.000149,2]
[423228142,1779955846000,-2559.28513337,0.00015,2]
[423228140,1779955846000,-200.0,0.0001315,2]
[423228130,1779955846000,-500.0,0.00012105,2]
[423228138,1779955846000,-500.0,0.00012105,2]
[423228136,1779955846000,-500.0,0.00012105,2]
[423228137,1779955846000,-500.0,0.00012105,2]
[423228139,1779955846000,-254.72887408,0.00012105,2]
[423228143,1779955876000,-500.0,0.00012105,2]
[423228144,1779955930000,-522.70130032,0.00011305,2]
[423228146,1779956095000,158.6,7.365e-05,2]
[423228147,1779956095000,158.6,7.979e-05,2]
[423228145,1779956095000,158.6,6.751e-05,2]
[423228148,1779956137000,-158.6,8.593e-05,2]
[423228149,1779956191000,-158.6,9.206e-05,2]
[423228150,1779956244000,-158.6,9.82e-05,2]
[423228151,1779956297000,-150.0,9.927e-05,2]
[423228152,1779956351000,-1029.76862689,0.000121,30]
[423228153,1779956353000,543.41332915,0.0001075,30]
[423228154,1779956373000,-161.90935228,0.0001,2]
[423228155,1779956426000,-3411.90036159,0.000103,2]
[423228156,1779956447000,-83.71284947,0.000103,2]
[423228157,1779956500000,-191.47387252,0.00010334,2]
[423228159,1779956553000,-158.6,0.00010434,2]
[423228160,1779956574000,510.60855229,8.24e-05,2]
[423228163,1779956664000,-700.05284825,9.9e-05,2]
[423228162,1779956664000,-5591.29447497,9.04e-05,2]
[423228164,1779956664000,-366.17109667,9.944e-05,2]
[423228166,1779956852000,-19.84198945,0.00010696,2]
[423228165,1779956852000,-191.47387252,0.00010598,2]
[423228178,1779956855000,-322.7288867,0.00010697,2]
[423228168,1779956855000,-150.0,0.00010696,2]
[423228167,1779956855000,-280.15801055,0.00010696,2]
[423228169,1779956855000,-866.0,0.00010697,2]
[423228170,1779956855000,-194.85314122,0.00010697,2]
[423228171,1779956855000,-186.25996153,0.00010697,2]
[423228173,1779956855000,-500.0,0.00010697,2]
[423228174,1779956855000,-500.0,0.00010697,2]
[423228176,1779956855000,-500.0,0.00010697,2]
[423228177,1779956855000,-500.0,0.00010697,2]
[423228175,1779956855000,-500.0,0.00010697,2]
[423228172,1779956855000,-500.0,0.00010697,2]
[423228183,1779956856000,-464.08397557,0.00010697,2]
[423228179,1779956856000,-177.2711133,0.00010697,2]
[423228182,1779956856000,-500.0,0.00010697,2]
[423228184,1779956856000,-500.0,0.00010697,2]
[423228180,1779956856000,-500.0,0.00010697,2]
[423228187,1779956856000,-500.0,0.00010697,2]
[423228185,1779956856000,-500.0,0.00010697,2]
[423228189,1779956856000,-358.64491113,0.00010697,2]
[423228181,1779956856000,-500.0,0.00010697,2]
[423228188,1779956856000,-500.0,0.00010697,2]
[423228186,1779956856000,-500.0,0.00010697,2]
[423228190,1779956857000,-141.35508887,0.00010697,2]
[423228192,1779956857000,-500.0,0.00010697,2]
[423228193,1779956857000,-500.0,0.00010697,2]
[423228194,1779956857000,-500.0,0.00010697,2]
[423228191,1779956857000,-500.0,0.00010697,2]
[423228196,1779956857000,-500.0,0.00010697,2]
[423228198,1779956857000,-500.0,0.00010697,2]
[423228197,1779956857000,-500.0,0.00010697,2]
[423228199,1779956857000,-500.0,0.00010697,2]
[423228200,1779956857000,-358.64491113,0.00010697,2]
[423228195,1779956857000,-500.0,0.00010697,2]
[423228204,1779956858000,-5000.0,0.000107,2]
[423228203,1779956858000,-4508.64491113,0.000107,2]
[423228202,1779956858000,-350.0,0.00010697,2]
[423228201,1779956858000,-141.35508887,0.00010697,2]
[423228206,1779956859000,-5000.0,0.000107,2]
[423228205,1779956859000,-5000.0,0.000107,2]
[423228207,1779956860000,-5000.0,0.000107,2]
[423228208,1779956861000,-5000.0,0.000107,2]
[423228210,1779956862000,-5000.0,0.000107,2]
[423228209,1779956862000,-5000.0,0.000107,2]
[423228211,1779956863000,-5000.0,0.000107,2]
[423228212,1779956864000,-5000.0,0.000107,2]
[423228213,1779956865000,-5000.0,0.000107,2]
[423228214,1779956866000,-5000.0,0.000107,2]
[423228215,1779956867000,-5000.0,0.000107,2]
[423228216,1779956868000,-5000.0,0.000107,2]
[423228217,1779956870000,-5000.0,0.000107,2]
[423228218,1779956875000,-7134.43478062,0.000107,2]
[423228222,1779956876000,-2061.30467046,0.00011573,2]
[423228220,1779956876000,-160.4,0.00010821,2]
[423228221,1779956876000,-158.6,0.00011048,2]
[423228219,1779956876000,-209.03147293,0.00010749,2]
[423228224,1779956877000,-255.0,0.00011734,2]
[423228226,1779956877000,-547.30589738,0.00011766,2]
[423228223,1779956877000,-158.6,0.00011661,2]
[423228228,1779956877000,-184.53200984,0.00011766,2]
[423228227,1779956877000,-500.0,0.00011766,2]
[423228229,1779956877000,-345.22594939,0.00011767,2]
[423228225,1779956877000,-420.0,0.00011757,2]
[423228235,1779956880000,-462.80404442,0.00012275,2]
[423228234,1779956880000,-158.6,0.00012275,2]
[423228233,1779956880000,-159.12,0.00012249,2]
[423228230,1779956880000,-2461.77405061,0.00011767,2]
[423228232,1779956880000,-1257.70190497,0.000121,30]
[423228231,1779956880000,-500.0,0.00012007,2]
[423228236,1779956896000,-4250.85342966,0.00012275,2]
[423228238,1779956896000,-286.33252592,0.00012275,2]
[423228239,1779956896000,-150.99,0.00012275,2]
[423228237,1779956896000,-5000.0,0.00012275,2]
[423228244,1779956897000,-1150.62517127,0.00012428,2]
[423228240,1779956897000,-4562.67747408,0.00012301,2]
[423228241,1779956897000,-3738.99517127,0.00012301,2]
[423228242,1779956897000,-411.63,0.00012329,2]
[423228243,1779956897000,-849.37482873,0.00012428,2]
[423228245,1779956897000,-311.53507324,0.000125,2]
[423228248,1779956897000,-153.99,0.00012629,2]
[423228247,1779956897000,-200.0,0.00012599,2]
[423228252,1779956897000,-158.6,0.00012889,2]
[423228249,1779956897000,-299.99,0.00012629,2]
[423228250,1779956897000,-500.0,0.00012808,2]
[423228251,1779956897000,-178.0,0.00012867,2]
[423228246,1779956897000,-329.99,0.00012541,2]
[423228253,1779956941000,503.25749695,0.00028079,120]
[423228254,1779957001000,500.0,0.00010498,2]
[423228255,1779957002000,1471.08,0.0001,2]
[423228272,1779957031000,-178.69,0.00012912,2]
[423228273,1779957031000,-1208.91,0.00012986,2]
[423228275,1779957031000,-2726.54,0.00013274,2]
[423228274,1779957031000,-500.0,0.00013082,2]
[423228271,1779957031000,-3941.2609642,0.00012431,2]
[423228279,1779957031000,-700.0,0.00013356,2]
[423228270,1779957031000,-300.0,0.0001243,2]
[423228267,1779957031000,-642.29822088,0.00011152,2]
[423228265,1779957031000,-665.72995843,0.00011152,2]
[423228268,1779957031000,-712.9531747,0.00011152,2]
[423228266,1779957031000,-563.8625775,0.00011152,2]
[423228263,1779957031000,-277.1267596,0.00011152,2]
[423228262,1779957031000,-475.40035895,0.00011151,2]
[423228264,1779957031000,-1356.41703269,0.00011152,2]
[423228261,1779957031000,-724.59964105,0.00011151,2]
[423228260,1779957031000,-150.0,0.00010817,2]
[423228278,1779957031000,-500.0,0.00013356,2]
[423228269,1779957031000,-1197.0,0.00012266,2]
[423228276,1779957031000,-150.0,0.00013321,2]
[423228293,1779957031000,-150.0,0.00013488,2]
[423228281,1779957031000,-150.99,0.00013375,2]
[423228303,1779957031000,-150.0,0.00013588,2]
[423228277,1779957031000,-163.67,0.00013345,2]
[423228299,1779957031000,-150.0,0.00013556,2]
[423228294,1779957031000,-308.63843124,0.00013497,2]
[423228295,1779957031000,-158.99555549,0.00013497,2]
[423228297,1779957031000,-158.6,0.00013503,2]
[423228292,1779957031000,-97.55271106,0.00013488,2]
[423228285,1779957031000,-150.0,0.00013488,2]
[423228290,1779957031000,-150.0,0.00013488,2]
[423228301,1779957031000,-154.54,0.00013566,2]
[423228291,1779957031000,-52.44728894,0.00013488,2]
[423228286,1779957031000,-150.0,0.00013488,2]
[423228289,1779957031000,-150.0,0.00013488,2]
[423228284,1779957031000,-150.1701145,0.00013488,2]
[423228288,1779957031000,-150.0,0.00013488,2]
[423228280,1779957031000,-152.0,0.00013375,7]
[423228283,1779957031000,-150.0,0.00013488,2]
[423228282,1779957031000,-150.0,0.00013488,2]
[423228287,1779957031000,-150.0,0.00013488,2]
[423228333,1779957032000,-150.0,0.00013787,2]
[423228332,1779957032000,-150.0,0.00013787,2]
[423228334,1779957032000,-3100.0,0.000138,5]
[423228324,1779957032000,-1500.0,0.000137,5]
[423228322,1779957032000,-166.66,0.00013699,2]
[423228317,1779957032000,-150.0,0.00013687,2]
[423228320,1779957032000,-200.0,0.00013699,2]
[423228311,1779957032000,-531.40839755,0.00013627,2]
[423228315,1779957032000,-201.0,0.0001364,2]
[423228313,1779957032000,-536.73,0.00013628,2]
[423228309,1779957032000,-500.0,0.00013627,2]
[423228305,1779957032000,-150.0,0.00013624,2]
[423228307,1779957032000,-500.0,0.00013627,2]
[423228335,1779957032000,-150.0,0.00013828,2]
[423228318,1779957032000,-150.0,0.00013692,2]
[423228336,1779957032000,-150.0,0.00013887,2]
[423228326,1779957032000,-3941.2609642,0.00013711,2]
[423228338,1779957032000,-4600.0,0.000139,5]
[423228348,1779957032000,-34969.66819475,0.00014,2]
[423228346,1779957032000,-25587.01996866,0.00014,2]
[423228344,1779957032000,-150.0,0.00013987,2]
[423228342,1779957032000,-150.0,0.00013987,2]
[423228340,1779957032000,-2000.0,0.00013982,2]
[423228343,1779957032000,-150.0,0.00013987,2]
[423228337,1779957032000,-150.0,0.00013896,2]
[423228350,1779957032000,-1600.0,0.00014,2]
[423228347,1779957032000,-91551.68157456,0.00014,2]
[423228341,1779957032000,-150.0,0.00013987,2]
[423228339,1779957032000,-150.0,0.00013965,2]
[423228327,1779957032000,-150.0,0.00013737,2]
[423228349,1779957032000,-305.20490765,0.00014,2]
[423228331,1779957032000,-150.0,0.0001376,2]
[423228329,1779957032000,-150.0,0.00013737,2]
[423228345,1779957032000,-55009.54151657,0.00014,2]
[423228359,1779957037000,-250.0,0.00014,2]
[423228358,1779957037000,-947180.31887017,0.00014,2]
[423228362,1779957037000,-383.11412816,0.00014021,2]
[423228361,1779957037000,-479.17240689,0.00014021,2]
[423228363,1779957037000,-9918.1170046,0.00014022,2]
[423228360,1779957037000,-265.72520712,0.00014,30]
[423228396,1779957038000,-500.0,0.00014338,2]
[423228395,1779957038000,-499.0,0.00014329,2]
[423228391,1779957038000,-475.09,0.000143,2]
[423228397,1779957038000,-500.0,0.00014338,2]
[423228393,1779957038000,-150.0,0.00014305,2]
[423228392,1779957038000,-500.0,0.00014301,2]
[423228401,1779957038000,-500.0,0.00014338,2]
[423228400,1779957038000,-151.70135183,0.00014338,2]
[423228413,1779957038000,-500.0,0.00014353,2]
[423228402,1779957038000,-331881.9602,0.00014339,2]
[423228415,1779957038000,-259.84867957,0.00014353,2]
[423228406,1779957038000,-2055.58319418,0.00014345,2]
[423228436,1779957038000,-3801.91039569,0.00014385,2]
[423228410,1779957038000,-500.0,0.00014353,2]
[423228408,1779957038000,-472.92193008,0.00014353,2]
[423228420,1779957038000,-1500000.0,0.00014354,2]
[423228422,1779957038000,-151.0,0.00014354,2]
[423228424,1779957038000,-151.0,0.00014354,2]
[423228432,1779957038000,-150.0,0.00014373,2]
[423228433,1779957038000,-475.09,0.00014375,2]
[423228435,1779957038000,-166.66,0.00014384,2]
[423228427,1779957038000,-151.0,0.00014354,2]
[423228398,1779957038000,-500.0,0.00014338,2]
[423228438,1779957038000,-150.0,0.00014387,2]
[423228439,1779957038000,-150.0,0.00014387,2]
[423228404,1779957038000,-181.07135031,0.00014344,2]
[423228394,1779957038000,-3801.91039569,0.00014312,2]
[423228379,1779957038000,-150.0,0.00014237,2]
[423228399,1779957038000,-500.0,0.00014338,2]
[423228364,1779957038000,-2728.4831874,0.00014022,2]
[423228366,1779957038000,-150.0,0.00014033,2]
[423228365,1779957038000,-127233.4440001,0.00014022,2]
[423228376,1779957038000,-500.0,0.00014178,2]
[423228372,1779957038000,-500.0,0.00014178,2]
[423228369,1779957038000,-150.0,0.00014101,2]
[423228367,1779957038000,-150.0,0.00014087,2]
[423228370,1779957038000,-150.0,0.00014169,2]
[423228371,1779957038000,-500.0,0.00014178,2]
[423228375,1779957038000,-500.0,0.00014178,2]
[423228368,1779957038000,-150.0,0.00014087,2]
[423228374,1779957038000,-500.0,0.00014178,2]
[423228388,1779957038000,-408.93971396,0.00014254,2]
[423228373,1779957038000,-500.0,0.00014178,2]
[423228378,1779957038000,-475.09,0.00014232,2]
[423228381,1779957038000,-150.0,0.00014237,2]
[423228380,1779957038000,-150.0,0.00014237,2]
[423228426,1779957038000,-151.0,0.00014354,2]
[423228382,1779957038000,-150.0,0.00014237,2]
[423228383,1779957038000,-3801.91039577,0.00014238,2]
[423228385,1779957038000,-2500.0,0.00014239,2]
[423228387,1779957038000,-5000.0,0.00014254,2]
[423228386,1779957038000,-2055.58319421,0.00014253,2]
[423228384,1779957038000,-1919.9875,0.00014239,2]
[423228389,1779957038000,-150.0,0.00014287,2]
[423228390,1779957038000,-6200.0,0.000143,5]
[423228377,1779957038000,-150.0,0.00014187,2]
[423228429,1779957038000,-158.712324,0.00014354,2]
[423228417,1779957038000,-150.0,0.00014354,2]
[423228431,1779957038000,-408.93971395,0.00014362,2]
[423228472,1779957038000,-218.046,0.000147,2]
[423228465,1779957038000,-2055.58319418,0.00014623,2]
[423228468,1779957038000,-408.93971395,0.00014685,2]
[423228470,1779957038000,-150.0,0.00014687,2]
[423228471,1779957038000,-3657.667,0.000147,2]
[423228477,1779957038000,-150.0,0.00014737,2]
[423228480,1779957038000,-1271.74402243,0.00014753,2]
[423228476,1779957038000,-700.0,0.00014726,2]
[423228483,1779957038000,-150.0,0.00014782,2]
[423228481,1779957038000,-2213.0310356,0.00014774,2]
[423228479,1779957038000,-3801.91039569,0.00014753,2]
[423228478,1779957038000,-150.0,0.00014737,2]
[423228473,1779957038000,-1500.0,0.000147,5]
[423228485,1779957038000,-408.93971395,0.00014792,2]
[423228482,1779957038000,-28389.6187359,0.00014774,2]
[423228484,1779957038000,-150.0,0.00014786,2]
[423228487,1779957038000,-500.0,0.00014799,2]
[423228489,1779957038000,-2055.58319418,0.00014808,2]
[423228496,1779957038000,-308.95066,0.0001485,2]
[423228490,1779957038000,-3801.91039569,0.00014826,2]
[423228488,1779957038000,-1500.0,0.000148,5]
[423228491,1779957038000,-1271.74402243,0.00014827,2]
[423228494,1779957038000,-25000.0,0.00014847,3]
[423228493,1779957038000,-200.0,0.00014847,2]
[423228492,1779957038000,-25000.0,0.00014838,3]
[423228440,1779957038000,-7800.0,0.000144,5]
[423228486,1779957038000,-500.0,0.00014799,2]
[423228474,1779957038000,-150.0,0.00014714,2]
[423228495,1779957038000,-308.95065,0.0001485,2]
[423228475,1779957038000,-2055.58319418,0.00014715,2]
[423228469,1779957038000,-150.0,0.00014687,2]
[423228441,1779957038000,-475.09,0.00014404,2]
[423228452,1779957038000,-1500.0,0.000145,5]
[423228442,1779957038000,-2055.58319418,0.00014438,2]
[423228450,1779957038000,-150.0,0.00014487,2]
[423228451,1779957038000,-150.0,0.00014487,2]
[423228445,1779957038000,-3801.91039569,0.00014459,2]
[423228447,1779957038000,-475.09,0.00014473,2]
[423228444,1779957038000,-46309.22,0.00014454,2]
[423228448,1779957038000,-150.0,0.00014487,2]
[423228446,1779957038000,-408.93971395,0.00014469,2]
[423228449,1779957038000,-150.0,0.00014487,2]
[423228454,1779957038000,-150.0,0.00014509,2]
[423228443,1779957038000,-150.0,0.00014441,2]
[423228453,1779957038000,-2813.0,0.00014506,2]
[423228455,1779957038000,-2055.58319418,0.0001453,2]
[423228466,1779957038000,-150.0,0.00014646,2]
[423228464,1779957038000,-3801.91039569,0.00014606,2]
[423228467,1779957038000,-3801.91039569,0.00014679,2]
[423228460,1779957038000,-408.93971395,0.00014577,2]
[423228461,1779957038000,-150.0,0.00014578,2]
[423228463,1779957038000,-1500.0,0.000146,5]
[423228462,1779957038000,-150.0,0.00014587,2]
[423228458,1779957038000,-293.4671236,0.00014551,2]
[423228457,1779957038000,-475.1,0.00014543,2]
[423228456,1779957038000,-3801.91039569,0.00014532,2]
[423228459,1779957038000,-23889.5826407,0.00014551,2]
[423228535,1779957039000,-181.07135031,0.0001499,2]
[423228537,1779957039000,-500.0,0.00014999,2]
[423228536,1779957039000,-3941.2609642,0.0001499,2]
[423228531,1779957039000,-153.62961216,0.00014986,2]
[423228526,1779957039000,-155.83277479,0.00014986,2]
[423228532,1779957039000,-293.68053698,0.00014986,2]
[423228534,1779957039000,-181.07135031,0.0001499,2]
[423228529,1779957039000,-233.44353508,0.00014986,2]
[423228528,1779957039000,-225.94236198,0.00014986,2]
[423228533,1779957039000,-280.50237672,0.00014986,2]
[423228540,1779957039000,-500.0,0.00014999,2]
[423228544,1779957039000,-500.0,0.00014999,2]
[423228538,1779957039000,-500.0,0.00014999,2]
[423228539,1779957039000,-500.0,0.00014999,2]
[423228541,1779957039000,-500.0,0.00014999,2]
[423228545,1779957039000,-500.0,0.00014999,2]
[423228548,1779957039000,-500.0,0.00014999,2]
[423228543,1779957039000,-500.0,0.00014999,2]
[423228546,1779957039000,-500.0,0.00014999,2]
[423228559,1779957039000,-500.0,0.00014999,2]
[423228547,1779957039000,-336.14704349,0.00014999,2]
[423228558,1779957039000,-500.0,0.00014999,2]
[423228497,1779957039000,-150.0,0.0001485,2]
[423228530,1779957039000,-151.80616668,0.00014986,2]
[423228542,1779957039000,-500.0,0.00014999,2]
[423228527,1779957039000,-151.20586673,0.00014986,2]
[423228507,1779957039000,-2000.0,0.000149,2]
[423228518,1779957039000,-2055.58319418,0.000149,2]
[423228498,1779957039000,-25000.0,0.00014856,3]
[423228499,1779957039000,-308.95065,0.0001486,2]
[423228501,1779957039000,-1558.0,0.00014867,5]
[423228511,1779957039000,-2065.0,0.000149,5]
[423228500,1779957039000,-25000.0,0.00014865,3]
[423228512,1779957039000,-408.93971395,0.000149,2]
[423228503,1779957039000,-25000.0,0.00014882,3]
[423228502,1779957039000,-25000.0,0.00014874,3]
[423228509,1779957039000,-1271.74402243,0.000149,2]
[423228504,1779957039000,-150.0,0.00014886,2]
[423228506,1779957039000,-386.73682112,0.000149,2]
[423228505,1779957039000,-25000.0,0.00014891,3]
[423228508,1779957039000,-4441.66898848,0.000149,3]
[423228510,1779957039000,-3801.91039569,0.000149,2]
[423228514,1779957039000,-25000.0,0.000149,3]
[423228524,1779957039000,-1544.0,0.00014981,2]
[423228513,1779957039000,-309.0,0.000149,2]
[423228523,1779957039000,-1544.0,0.00014981,2]
[423228516,1779957039000,-399.79715885,0.000149,2]
[423228515,1779957039000,-1000.0,0.000149,2]
[423228525,1779957039000,-1544.0,0.00014981,2]
[423228521,1779957039000,-493.7939693,0.00014942,2]
[423228522,1779957039000,-6334.5801751,0.00014942,2]
[423228520,1779957039000,-150.0,0.00014925,2]
[423228519,1779957039000,-150.0,0.00014918,2]
[423228517,1779957039000,-35404.94269047,0.000149,2]
[423228549,1779957039000,-500.0,0.00014999,2]
[423228560,1779957039000,-500.0,0.00014999,2]
[423228557,1779957039000,-500.0,0.00014999,2]
[423228585,1779957039000,-500.0,0.00014999,2]
[423228581,1779957039000,-500.0,0.00014999,2]
[423228584,1779957039000,-500.0,0.00014999,2]
[423228586,1779957039000,-500.0,0.00014999,2]
[423228592,1779957039000,-500.0,0.00014999,2]
[423228603,1779957039000,-150.0,0.00015,2]
[423228595,1779957039000,-500.0,0.00014999,2]
[423228596,1779957039000,-500.0,0.00014999,2]
[423228594,1779957039000,-500.0,0.00014999,2]
[423228601,1779957039000,-428.3647939,0.00015,2]
[423228598,1779957039000,-500.0,0.00014999,2]
[423228602,1779957039000,-1018.0,0.00015,2]
[423228593,1779957039000,-500.0,0.00014999,2]
[423228604,1779957039000,-1405.72280327,0.00015,2]
[423228597,1779957039000,-500.0,0.00014999,2]
[423228600,1779957039000,-2013780.84856978,0.00015,2]
[423228599,1779957039000,-1408.0,0.00015,5]
[423228606,1779957039000,-6756307.85078142,0.00015,2]
[423228607,1779957039000,-1049.53799999,0.00015,2]
[423228605,1779957039000,-200.0,0.00015,2]
[423228609,1779957039000,-275.08936872,0.00015,2]
[423228608,1779957039000,-49302.60633847,0.00015,2]
[423228611,1779957039000,-5280.62205655,0.00015,2]
[423228610,1779957039000,-3413.79463874,0.00015,2]
[423228561,1779957039000,-500.0,0.00014999,2]
[423228583,1779957039000,-500.0,0.00014999,2]
[423228580,1779957039000,-500.0,0.00014999,2]
[423228556,1779957039000,-500.0,0.00014999,2]
[423228576,1779957039000,-554.15,0.00014999,2]
[423228578,1779957039000,-554.15,0.00014999,2]
[423228553,1779957039000,-500.0,0.00014999,2]
[423228552,1779957039000,-500.0,0.00014999,2]
[423228555,1779957039000,-500.0,0.00014999,2]
[423228550,1779957039000,-500.0,0.00014999,2]
[423228563,1779957039000,-500.0,0.00014999,2]
[423228564,1779957039000,-500.0,0.00014999,2]
[423228566,1779957039000,-500.0,0.00014999,2]
[423228571,1779957039000,-554.15,0.00014999,2]
[423228565,1779957039000,-500.0,0.00014999,2]
[423228562,1779957039000,-479.18442925,0.00014999,2]
[423228573,1779957039000,-554.15,0.00014999,2]
[423228554,1779957039000,-311.50322523,0.00014999,2]
[423228575,1779957039000,-554.15,0.00014999,2]
[423228568,1779957039000,-500.0,0.00014999,2]
[423228591,1779957039000,-500.0,0.00014999,2]
[423228588,1779957039000,-500.0,0.00014999,2]
[423228590,1779957039000,-226.61703358,0.00014999,2]
[423228589,1779957039000,-500.0,0.00014999,2]
[423228587,1779957039000,-500.0,0.00014999,2]
[423228551,1779957039000,-500.0,0.00014999,2]
[423228569,1779957039000,-500.0,0.00014999,2]
[423228567,1779957039000,-500.0,0.00014999,2]
[423228574,1779957039000,-554.15,0.00014999,2]
[423228572,1779957039000,-554.15,0.00014999,2]
[423228570,1779957039000,-500.0,0.00014999,2]
[423228577,1779957039000,-554.15,0.00014999,2]
[423228636,1779957043000,-291.12424685,0.00015,2]
[423228631,1779957043000,-383.67320534,0.00013221,2]
[423228632,1779957043000,-85.93679466,0.00013222,2]
[423228634,1779957043000,-257.82454741,0.000149,2]
[423228633,1779957043000,-382.99712298,0.00013222,2]
[423228635,1779957043000,-3153.11449571,0.00015,2]
[423228640,1779957043000,-172684.40338348,0.00015,2]
[423228638,1779957043000,-360256.34189737,0.00015,2]
[423228639,1779957043000,-495.6451862,0.00015,2]
[423228641,1779957043000,-1220387.26055414,0.00015,2]
[423228642,1779957043000,-599258.77292098,0.00015,2]
[423228643,1779957043000,-287.9431147,0.00015,2]
[423228637,1779957043000,-256.7708627,0.00015,2]
[423228652,1779957045000,-1025.066,0.0001483,3]
[423228651,1779957045000,-419.27752317,0.0001483,3]
[423228650,1779957045000,-262.0071659,0.00014254,2]
[423228653,1779957046000,-5272.23377436,0.0001483,3]
[423228658,1779957188000,248.25188704,9.492e-05,7]
[423228660,1779957211000,-500.0,0.0001243,2]
[423228661,1779957222000,-500.0,0.0001243,2]
[423228662,1779957264000,-500.0,0.0001243,2]
[423228663,1779957276000,-500.0,0.0001243,2]
[423228665,1779957433000,-500.0,0.0001308,2]